fUST/lending_fUST_20260412
["ID","MTS","AMOUNT","RATE_DAILY","PERIOD"]
[420300187,1775935841494,-643.78105749,0.00017959,3]
[420300188,1775935841504,-475.5589574,0.000186,2]
[420300220,1775935843204,-51.8673958,0.000186,2]
[420300221,1775935843213,-3876.74207892,0.000186,2]
[420300222,1775935843224,-1650.95049077,0.000186,2]
[420300223,1775935843235,-2943.40244164,0.000186,2]
[420300233,1775935846038,-1479.7185816,0.000186,2]
[420300376,1775937033740,-441.0,0.00012139,2]
[420300378,1775937033751,-184.0,0.00012139,2]
[420300380,1775937033769,-369.52823898,0.00012327,2]
[420300382,1775937033781,-1000.0,0.00013699,2]
[420300384,1775937033791,-436.043322,0.00014327,2]
[420300386,1775937033803,-441.0,0.00015139,2]
[420300388,1775937033825,-184.0,0.00015139,2]
[420300390,1775937033840,-1000.0,0.0001529,2]
[420300392,1775937033857,-184.98785603,0.00015589,2]
[420300395,1775937033873,-115.01214397,0.00015589,2]
[420300397,1775937033887,-258.07559804,0.0001559,2]
[420300399,1775937033903,-4723.14804493,0.0001559,2]
[420300401,1775937033916,-790.0,0.000156,2]
[420300403,1775937033930,-416.560232,0.00015647,2]
[420300404,1775937033945,-502.55840501,0.00016327,2]
[420300405,1775937033961,-243.427374,0.00016498,2]
[420300406,1775937033979,-160.0,0.00016687,2]
[420300407,1775937033992,-145.40648643,0.0001672,2]
[420300408,1775937034024,-392.27801357,0.0001672,2]
[420300409,1775937034045,-557.5788265,0.00016775,2]
[420300410,1775937034070,-578.20924308,0.0001683,2]
[420300412,1775937034094,-599.60298507,0.00016885,2]
[420300414,1775937034109,-621.78829552,0.0001694,2]
[420300417,1775937034121,-644.79446246,0.00016995,2]
[420300419,1775937034141,-668.65185757,0.0001705,2]
[420300421,1775937034156,-693.3919763,0.00017105,2]
[420300422,1775937034174,-719.04747942,0.0001716,2]
[420300423,1775937034186,-160.0,0.00017184,2]
[420300424,1775937034201,-745.65223616,0.00017215,2]
[420300425,1775937034213,-733.1398965,0.0001727,2]
[420300426,1775937034230,-517.4855425,0.00017653,2]
[420300427,1775937034241,-517.48554247,0.00017654,2]
[420300428,1775937034252,-517.48554247,0.00017654,2]
[420300429,1775937034265,-517.48554247,0.00017655,2]
[420300430,1775937034277,-517.48554247,0.00017655,2]
[420300431,1775937034288,-500.0,0.0001775,2]
[420300432,1775937034301,-500.0,0.0001775,2]
[420300433,1775937034311,-500.0,0.0001775,2]
[420300434,1775937034324,-321.17419322,0.0001775,2]
[420300435,1775937034340,-231.58924848,0.0001775,2]
[420300436,1775937034355,-500.0,0.0001775,2]
[420300437,1775937034367,-500.0,0.0001775,2]
[420300438,1775937034381,-500.0,0.0001775,2]
[420300439,1775937034401,-500.0,0.0001775,2]
[420300440,1775937034416,-220.63308383,0.0001775,2]
[420300441,1775937034441,-500.0,0.0001775,2]
[420300442,1775937034457,-500.0,0.0001775,2]
[420300443,1775937034478,-500.0,0.0001775,2]
[420300444,1775937034490,-250.78031699,0.0001775,2]
[420300445,1775937034506,-44957.73776792,0.00017754,2]
[420300463,1775937038353,-855.0,0.00015589,2]
[420300464,1775937038365,-500.0,0.0001775,2]
[420300465,1775937038375,-500.0,0.0001775,2]
[420300466,1775937038385,-500.0,0.0001775,2]
[420300467,1775937038400,-500.0,0.0001775,2]
[420300468,1775937038410,-500.0,0.0001775,2]
[420300469,1775937038420,-500.0,0.0001775,2]
[420300470,1775937038430,-500.0,0.0001775,2]
[420300471,1775937038445,-333.837,0.0001775,2]
[420300472,1775937038456,-41899.67605982,0.00017754,2]
[420300473,1775937038468,-1785.00951315,0.00017754,2]
[420300474,1775937038483,-5199.95634752,0.00017754,2]
[420300475,1775937038496,-236352.91247956,0.00017754,2]
[420300497,1775937040864,-14737.6,0.00017754,2]
[420300513,1775937043487,-561.03084882,0.00017754,2]
[420300622,1775937048130,-649.11,0.00017754,2]
[420300756,1775938152256,-1831.34209062,0.00013068,2]
[420300857,1775938238574,-408.11956523,0.00013068,2]
[420300858,1775938238594,-350.98563966,0.00013134,2]
[420300859,1775938238606,-441.0,0.000132,2]
[420300860,1775938238617,-184.0,0.000132,2]
[420300861,1775938238632,-1000.0,0.00013699,2]
[420300862,1775938238644,-306.10951352,0.000149,2]
[420300863,1775938238657,-300.0,0.00014999,2]
[420300864,1775938238671,-743.0,0.00015,2]
[420300865,1775938238839,-820.33244951,0.00015,2]
[420300866,1775938238859,-119.66755049,0.00015,2]
[420300867,1775938238872,-602.0,0.00015,2]
[420300868,1775938238883,-306.10951351,0.00015036,2]
[420300869,1775938238903,-414.1630548,0.00015134,2]
[420300870,1775938238916,-160.0,0.00015513,2]
[420300871,1775938238930,-160.0,0.00015931,2]
[420300872,1775938238951,-441.0,0.000162,2]
[420300873,1775938238967,-184.0,0.000162,2]
[420300874,1775938238977,-325.1916265,0.00016292,2]
[420300875,1775938238987,-790.0,0.000163,2]
[420300876,1775938239003,-1557.0,0.00016438,2]
[420300877,1775938239022,-306.10951351,0.00016973,2]
[420300878,1775938239037,-20819.0838156,0.00017074,2]
[420300879,1775938239052,-323.8019515,0.00017103,2]
[420300880,1775938239075,-537.6845,0.00017124,2]
[420300881,1775938239096,-477.34046994,0.00017134,2]
[420300882,1775938239142,-442.25,0.000172,2]
[420300883,1775938239236,-3627.21526895,0.00017224,2]
[420300884,1775938239284,-1557.0,0.0001726,2]
[420300885,1775938239300,-170.871,0.00017449,2]
[420300886,1775938239313,-289.03575981,0.00017451,2]
[420300887,1775938239344,-1557.0,0.00017534,2]
[420300888,1775938239357,-504.44315869,0.00017548,2]
[420300889,1775938239388,-233.6859,0.00017548,2]
[420300890,1775938239398,-625.84124785,0.00017548,2]
[420300891,1775938239433,-500.0,0.00017548,2]
[420300892,1775938239443,-625.84124785,0.00017548,2]
[420300893,1775938239458,-500.0,0.00017548,2]
[420300894,1775938239479,-625.84124785,0.00017548,2]
[420300895,1775938239489,-359.22040408,0.00017548,2]
[420300896,1775938239506,-500.0,0.00017548,2]
[420300897,1775938239522,-625.84124785,0.00017548,2]
[420300898,1775938239532,-500.0,0.00017548,2]
[420300899,1775938239543,-625.84124785,0.00017548,2]
[420300900,1775938239556,-625.84124785,0.00017548,2]
[420300901,1775938239566,-625.84124785,0.00017548,2]
[420300902,1775938239576,-500.0,0.00017548,2]
[420300903,1775938239586,-625.84124785,0.00017548,2]
[420300904,1775938239595,-625.84124785,0.00017548,2]
[420300905,1775938239608,-625.84124785,0.00017548,2]
[420300906,1775938239618,-500.0,0.00017548,2]
[420300907,1775938239627,-625.84124785,0.00017548,2]
[420300908,1775938239637,-500.0,0.00017548,2]
[420300909,1775938239647,-235.00328806,0.00017548,2]
[420300910,1775938239657,-500.0,0.00017548,2]
[420300911,1775938239667,-500.0,0.00017548,2]
[420300912,1775938239677,-500.0,0.00017548,2]
[420300913,1775938239687,-500.0,0.00017548,2]
[420300914,1775938239697,-500.0,0.00017548,2]
[420300915,1775938239707,-500.0,0.00017548,2]
[420300916,1775938239716,-449.95089277,0.00017548,2]
[420300917,1775938239726,-625.84124785,0.00017548,2]
[420300918,1775938239738,-500.0,0.00017548,2]
[420300919,1775938239749,-500.0,0.00017548,2]
[420300920,1775938239759,-205.01400705,0.00017548,2]
[420300921,1775938239772,-500.0,0.00017548,2]
[420300922,1775938239783,-500.0,0.00017548,2]
[420300923,1775938239793,-500.0,0.00017548,2]
[420300924,1775938239803,-500.0,0.00017548,2]
[420300925,1775938239820,-500.0,0.00017548,2]
[420300926,1775938239829,-500.0,0.00017548,2]
[420300927,1775938239839,-450.0,0.00017548,2]
[420300928,1775938239853,-500.0,0.00017548,2]
[420300929,1775938239868,-500.0,0.00017548,2]
[420300930,1775938239878,-500.0,0.00017548,2]
[420300931,1775938239887,-389.67548592,0.00017548,2]
[420300932,1775938239908,-500.0,0.00017548,2]
[420300933,1775938239918,-500.0,0.00017548,2]
[420300934,1775938239928,-500.0,0.00017548,2]
[420300935,1775938239950,-500.0,0.00017548,2]
[420300936,1775938239959,-500.0,0.00017548,2]
[420300937,1775938239969,-500.0,0.00017548,2]
[420300938,1775938239985,-500.0,0.00017548,2]
[420300939,1775938239998,-500.0,0.00017548,2]
[420300940,1775938240007,-500.0,0.00017548,2]
[420300941,1775938240017,-500.0,0.00017548,2]
[420300942,1775938240035,-500.0,0.00017548,2]
[420300943,1775938240044,-500.0,0.00017548,2]
[420300944,1775938240054,-500.0,0.00017548,2]
[420300945,1775938240065,-500.0,0.00017548,2]
[420300946,1775938240075,-500.0,0.00017548,2]
[420300947,1775938240087,-500.0,0.00017548,2]
[420300948,1775938240096,-500.0,0.00017548,2]
[420300949,1775938240107,-4865.33336363,0.00017552,2]
[420300950,1775938240117,-196944.08853886,0.00017552,2]
[420300972,1775938243521,-160.0,0.0001547,2]
[420300973,1775938243531,-2084.0,0.00017552,2]
[420300978,1775938246357,-300.0,0.00017552,2]
[420300979,1775938246369,-29870.5760181,0.00017552,2]
[420300989,1775938802966,155.2,2e-05,2]
[420300990,1775938803637,155.2,2e-05,2]
[420300991,1775938804306,155.2,2e-05,2]
[420300992,1775938804816,34.4,2e-05,2]
[420300993,1775938804864,120.8,2e-05,2]
[420300997,1775939370147,-155.2,2.1e-05,2]
[420300998,1775939370170,-155.2,2.1e-05,2]
[420300999,1775939370204,-155.2,2.1e-05,2]
[420301000,1775939370231,-155.2,2.1e-05,2]
[420301001,1775939370276,-155.2,2.1e-05,2]
[420301002,1775939370299,-155.2,2.1e-05,2]
[420301003,1775939370341,-155.2,2.1e-05,2]
[420301004,1775939370381,-343.53585637,2.125e-05,2]
[420301005,1775939370445,-597.0,2.199e-05,2]
[420301006,1775939370487,-155.2,2.2e-05,2]
[420301007,1775939370537,-155.2,2.2e-05,2]
[420301008,1775939370559,-155.2,2.2e-05,2]
[420301009,1775939370589,-155.2,2.2e-05,2]
[420301010,1775939370613,-405.37231052,4.125e-05,2]
[420301011,1775939370642,-467.20876467,6.125e-05,2]
[420301012,1775939370673,-495.14510079,8.125e-05,2]
[420301052,1775939433698,-33.90011802,8.125e-05,2]
[420301053,1775939433715,-590.88167296,0.00010125,2]
[420301054,1775939433726,-152.0,0.00011706,7]
[420301055,1775939433735,-652.71812711,0.00012125,2]
[420301056,1775939433754,-3107.54427891,0.00012215,2]
[420301057,1775939433777,-576.63314209,0.00012215,2]
[420301058,1775939433832,-5462.54913413,0.00012215,2]
[420301287,1775939443872,-1972.0,0.00012215,2]
[420301300,1775939446694,-2280.28479327,0.00012215,2]
[420301301,1775939446708,-160.0,0.00013564,2]
[420301302,1775939446743,-1000.0,0.00013699,2]
[420301303,1775939446758,-1000.0,0.00013699,2]
[420301304,1775939446786,-714.55458126,0.00014125,2]
[420301305,1775939446816,-184.0,0.00014196,2]
[420301306,1775939446845,-200.000001,0.00014243,2]
[420301307,1775939446856,-1609.9046858,0.00014263,2]
[420301308,1775939446881,-183.96515,0.00014427,2]
[420301309,1775939446910,-160.0,0.00015,2]
[420301310,1775939446927,-592.0,0.000152,2]
[420301311,1775939446939,-681.0,0.00015296,2]
[420301312,1775939446965,-941.0,0.00015296,2]
[420301313,1775939446977,-776.3910354,0.00016125,2]
[420301314,1775939446988,-500.0,0.0001675,2]
[420301315,1775939447006,-510.63345237,0.0001675,5]
[420301316,1775939447018,-649.28293738,0.00017156,2]
[420301317,1775939447030,-184.0,0.00017196,2]
[420301318,1775939447054,-14303.92765606,0.00017249,2]
[420301319,1775939447065,-802.0264,0.00017249,2]
[420301398,1775940633337,-2501.47216158,0.00013436,2]
[420301400,1775940633350,-48.66817392,0.00013436,2]
[420301402,1775940633368,-266.18170503,0.00013437,2]
[420301405,1775940633382,-1095.170471,0.00013494,2]
[420301407,1775940633391,-2148.50878763,0.00013594,2]
[420301409,1775940633401,-180.08463978,0.00013699,2]
[420301411,1775940633415,-1000.0,0.00013699,2]
[420301413,1775940633429,-1200.0,0.00013991,2]
[420301415,1775940633439,-300.0,0.00013993,2]
[420301417,1775940633449,-300.0,0.00013993,2]
[420301419,1775940633469,-1164.49737129,0.00013994,2]
[420301422,1775940633488,-1753.44352716,0.00013994,2]
[420301424,1775940633505,-3086.7146136,0.00014094,2]
[420301425,1775940633525,-208.280116,0.00014097,2]
[420301426,1775940633535,-1417.8746596,0.00014194,2]
[420301427,1775940633547,-1783.97244465,0.00014194,2]
[420301428,1775940633563,-3255.48832876,0.00014294,2]
[420301429,1775940633572,-182.82,0.00014361,2]
[420301430,1775940633581,-3553.16640296,0.00014394,2]
[420301431,1775940633591,-191.28,0.00014395,2]
[420301432,1775940633603,-208.46,0.00014465,2]
[420301433,1775940633615,-3012.16755066,0.00014494,2]
[420301434,1775940633626,-961.04889694,0.00014494,2]
[420301435,1775940633640,-264.34110668,0.00014494,2]
[420301436,1775940633651,-231.86,0.00014559,2]
[420301437,1775940633663,-260.55,0.00014641,2]
[420301438,1775940633674,-438.577338,0.00014865,2]
[420301439,1775940633685,-233.310459,0.00015068,2]
[420301440,1775940633705,-1416.636,0.00015124,2]
[420301441,1775940633715,-264.20513576,0.00015124,2]
[420301442,1775940633732,-379.79486424,0.00015124,2]
[420301443,1775940633748,-2206.0,0.00015124,2]
[420301444,1775940633763,-189.49,0.00015124,2]
[420301445,1775940633776,-441.0,0.00015124,2]
[420301446,1775940633790,-314.09441194,0.00015437,2]
[420301447,1775940633802,-276.4,0.0001544,2]
[420301448,1775940633814,-244.55469638,0.0001549,2]
[420301459,1775940638065,-577.0,0.0001549,2]
[420301460,1775940638140,-423.0,0.0001549,2]
[420301461,1775940638162,-443.0,0.0001549,2]
[420301462,1775940638231,-194.02264162,0.0001549,2]
[420301463,1775940638245,-5308.5237375,0.00015639,2]
[420301464,1775940638262,-6337.37325219,0.00016,2]
[420301465,1775940638274,-438.577338,0.00016116,2]
[420301466,1775940638290,-289.3899,0.00016137,2]
[420301467,1775940638316,-160.0,0.00016276,2]
[420301468,1775940638327,-790.0,0.000164,2]
[420301469,1775940638338,-500.0,0.00016403,2]
[420301470,1775940638350,-500.0,0.00016403,2]
[420301471,1775940638370,-300.0,0.00016403,2]
[420301472,1775940638381,-500.0,0.00016403,2]
[420301473,1775940638394,-500.0,0.00016403,2]
[420301474,1775940638413,-216.66121031,0.00016403,2]
[420301475,1775940638424,-500.0,0.00016403,2]
[420301476,1775940638434,-500.0,0.00016403,2]
[420301477,1775940638454,-187.18000715,0.00016403,2]
[420301478,1775940638465,-500.0,0.00016403,2]
[420301479,1775940638483,-516.92524257,0.00016403,2]
[420301480,1775940638494,-500.0,0.00016403,2]
[420301481,1775940638503,-500.0,0.00016403,2]
[420301482,1775940638524,-500.0,0.00016403,2]
[420301483,1775940638533,-500.0,0.00016403,2]
[420301484,1775940638551,-500.0,0.00016403,2]
[420301485,1775940638566,-500.0,0.00016403,2]
[420301486,1775940638580,-500.0,0.00016403,2]
[420301487,1775940638594,-500.0,0.00016403,2]
[420301488,1775940638616,-500.0,0.00016403,2]
[420301489,1775940638626,-500.0,0.00016403,2]
[420301490,1775940638644,-500.0,0.00016403,2]
[420301491,1775940638656,-500.0,0.00016403,2]
[420301492,1775940638668,-500.0,0.00016403,2]
[420301493,1775940638678,-500.0,0.00016403,2]
[420301494,1775940638703,-500.0,0.00016403,2]
[420301495,1775940638713,-500.0,0.00016403,2]
[420301496,1775940638730,-500.0,0.00016403,2]
[420301497,1775940638742,-500.0,0.00016403,2]
[420301498,1775940638767,-500.0,0.00016403,2]
[420301499,1775940638777,-500.0,0.00016403,2]
[420301500,1775940638787,-500.0,0.00016403,2]
[420301501,1775940638831,-500.0,0.00016403,2]
[420301502,1775940638842,-500.0,0.00016403,2]
[420301503,1775940638856,-500.0,0.00016403,2]
[420301504,1775940638875,-500.0,0.00016403,2]
[420301505,1775940638886,-500.0,0.00016403,2]
[420301506,1775940638900,-500.0,0.00016403,2]
[420301507,1775940638919,-500.0,0.00016403,2]
[420301508,1775940638929,-500.0,0.00016403,2]
[420301509,1775940638953,-500.0,0.00016403,2]
[420301510,1775940638966,-500.0,0.00016403,2]
[420301511,1775940638976,-500.0,0.00016403,2]
[420301512,1775940638990,-500.0,0.00016403,2]
[420301513,1775940639000,-500.0,0.00016403,2]
[420301514,1775940639013,-500.0,0.00016403,2]
[420301515,1775940639023,-500.0,0.00016403,2]
[420301516,1775940639035,-500.0,0.00016403,2]
[420301517,1775940639048,-500.0,0.00016403,2]
[420301518,1775940639059,-500.0,0.00016403,2]
[420301519,1775940639071,-500.0,0.00016403,2]
[420301520,1775940639092,-500.0,0.00016403,2]
[420301521,1775940639104,-379.84659709,0.00016403,2]
[420301522,1775940639114,-500.0,0.00016403,2]
[420301523,1775940639135,-500.0,0.00016403,2]
[420301524,1775940639158,-500.0,0.00016403,2]
[420301525,1775940639170,-500.0,0.00016403,2]
[420301526,1775940639179,-500.0,0.00016403,2]
[420301527,1775940639198,-500.0,0.00016403,2]
[420301528,1775940639209,-500.0,0.00016403,2]
[420301529,1775940639218,-500.0,0.00016403,2]
[420301531,1775940639238,-500.0,0.00016403,2]
[420301533,1775940639248,-500.0,0.00016403,2]
[420301534,1775940639258,-500.0,0.00016403,2]
[420301535,1775940639271,-500.0,0.00016403,2]
[420301536,1775940639290,-500.0,0.00016403,2]
[420301537,1775940639301,-500.0,0.00016403,2]
[420301538,1775940639321,-500.0,0.00016403,2]
[420301539,1775940639335,-500.0,0.00016403,2]
[420301540,1775940639353,-500.0,0.00016403,2]
[420301541,1775940639362,-592.53315234,0.00016403,2]
[420301542,1775940639376,-500.0,0.00016403,2]
[420301543,1775940639396,-500.0,0.00016403,2]
[420301544,1775940639406,-500.0,0.00016403,2]
[420301545,1775940639429,-500.0,0.00016403,2]
[420301546,1775940639439,-500.0,0.00016403,2]
[420301547,1775940639454,-500.0,0.00016403,2]
[420301548,1775940639483,-500.0,0.00016403,2]
[420301550,1775940639499,-500.0,0.00016403,2]
[420301551,1775940639527,-500.0,0.00016403,2]
[420301552,1775940639545,-500.0,0.00016403,2]
[420301553,1775940639579,-500.0,0.00016403,2]
[420301554,1775940639632,-500.0,0.00016403,2]
[420301556,1775940639642,-500.0,0.00016403,2]
[420301558,1775940639657,-500.0,0.00016403,2]
[420301560,1775940639670,-500.0,0.00016403,2]
[420301561,1775940639680,-500.0,0.00016403,2]
[420301562,1775940639689,-500.0,0.00016403,2]
[420301563,1775940639699,-500.0,0.00016403,2]
[420301564,1775940639711,-500.0,0.00016403,2]
[420301565,1775940639720,-500.0,0.00016403,2]
[420301566,1775940639730,-500.0,0.00016403,2]
[420301567,1775940639741,-500.0,0.00016403,2]
[420301568,1775940639758,-500.0,0.00016403,2]
[420301570,1775940639768,-309.25331523,0.00016403,2]
[420301572,1775940639778,-500.0,0.00016403,2]
[420301574,1775940639789,-500.0,0.00016403,2]
[420301576,1775940639804,-500.0,0.00016403,2]
[420301578,1775940639820,-500.0,0.00016403,2]
[420301580,1775940639830,-500.0,0.00016403,2]
[420301582,1775940639840,-500.0,0.00016403,2]
[420301583,1775940639867,-500.0,0.00016403,2]
[420301584,1775940639879,-500.0,0.00016403,2]
[420301585,1775940639901,-500.0,0.00016403,2]
[420301586,1775940639910,-500.0,0.00016403,2]
[420301587,1775940639930,-500.0,0.00016403,2]
[420301588,1775940639939,-500.0,0.00016403,2]
[420301589,1775940639950,-500.0,0.00016403,2]
[420301590,1775940639968,-500.0,0.00016403,2]
[420301591,1775940639985,-500.0,0.00016403,2]
[420301592,1775940639996,-500.0,0.00016403,2]
[420301593,1775940640006,-500.0,0.00016403,2]
[420301594,1775940640018,-550.0,0.00016403,2]
[420301595,1775940640039,-500.0,0.00016403,2]
[420301596,1775940640049,-500.0,0.00016403,2]
[420301597,1775940640062,-500.0,0.00016403,2]
[420301598,1775940640090,-500.0,0.00016403,2]
[420301600,1775940640099,-500.0,0.00016403,2]
[420301601,1775940640113,-500.0,0.00016403,2]
[420301602,1775940640130,-340.93044584,0.00016404,2]
[420301603,1775940640139,-160.0,0.00016622,2]
[420301604,1775940640154,-327.0,0.00016675,2]
[420301605,1775940640167,-438.577338,0.00016742,2]
[420301606,1775940640192,-382.19,0.00016834,3]
[420301607,1775940640201,-191.09,0.00016834,3]
[420301608,1775940640231,-573.32,0.00016834,3]
[420301609,1775940640258,-8590.812168,0.0001695,2]
[420301610,1775940640267,-12610.1909424,0.0001695,2]
[420301611,1775940640298,-3051.8687547,0.0001695,2]
[420301612,1775940640327,-1637.711562,0.0001695,2]
[420301613,1775940640336,-305.5564331,0.0001695,2]
[420301614,1775940640361,-304.3672148,0.0001695,2]
[420301615,1775940640386,-500.0,0.00016986,2]
[420301616,1775940640395,-500.0,0.00016986,2]
[420301617,1775940640409,-500.0,0.00016986,2]
[420301618,1775940640421,-500.0,0.00016986,2]
[420301619,1775940640431,-624.76963898,0.00016986,2]
[420301620,1775940640440,-500.0,0.0001699,2]
[420301621,1775940640659,-350.23445896,0.0001699,2]
[420301622,1775940640677,-340.93044583,0.00017028,2]
[420301623,1775940640686,-258.54999738,0.00017196,2]
[420301624,1775940640696,-158.759,0.00017248,2]
[420301625,1775940640710,-166.0,0.00017249,2]
[420301626,1775940640726,-948.0,0.00017249,2]
[420301627,1775940640735,-948.0,0.00017249,2]
[420301628,1775940640745,-648.0,0.00017249,2]
[420301629,1775940640755,-948.0,0.00017249,2]
[420301630,1775940640770,-648.0,0.00017249,2]
[420301631,1775940640789,-948.0,0.00017249,2]
[420301632,1775940640798,-648.0,0.00017249,2]
[420301633,1775940640807,-948.0,0.00017249,2]
[420301634,1775940640825,-648.0,0.00017249,2]
[420301635,1775940640836,-948.0,0.00017249,2]
[420301636,1775940640870,-648.0,0.00017249,2]
[420301637,1775940640879,-340.0,0.00017249,2]
[420301638,1775940640915,-948.0,0.00017249,2]
[420301639,1775940640946,-340.0,0.00017249,2]
[420301640,1775940640975,-648.0,0.00017249,2]
[420301641,1775940640984,-225.38977988,0.00017249,2]
[420301642,1775940641011,-948.0,0.00017249,2]
[420301643,1775940641038,-340.0,0.00017249,2]
[420301644,1775940641047,-648.0,0.00017249,2]
[420301645,1775940641058,-340.0,0.00017249,2]
[420301646,1775940641078,-648.0,0.00017249,2]
[420301647,1775940641087,-1093.25447628,0.00017249,2]
[420301648,1775940641105,-648.0,0.00017249,2]
[420301649,1775940641118,-462.79861355,0.00017249,2]
[420301650,1775940641128,-591.06527015,0.00017249,2]
[420301651,1775940641141,-948.0,0.00017249,2]
[420301652,1775940641160,-948.0,0.00017249,2]
[420301653,1775940641171,-155.0,0.00017249,2]
[420301654,1775940641185,-948.0,0.00017249,2]
[420301655,1775940641214,-948.0,0.00017249,2]
[420301656,1775940641225,-948.0,0.00017249,2]
[420301657,1775940641240,-409.26571564,0.00017249,2]
[420301658,1775940641259,-155.0,0.00017249,2]
[420301659,1775940641269,-160.01082423,0.00017249,2]
[420301660,1775940641285,-6181.22143163,0.00017275,2]
[420301661,1775940641297,-438.577338,0.00017368,2]
[420301662,1775940641312,-362.00711884,0.00017437,2]
[420301663,1775940641326,-340.93044583,0.00017651,2]
[420301664,1775940641335,-160.33754148,0.00017654,2]
[420301665,1775940641348,-303.88480258,0.00017654,2]
[420301666,1775940641357,-640.70881576,0.00017654,2]
[420301667,1775940641378,-250.0,0.00017753,3]
[420301668,1775940641387,-155.0,0.00017808,2]
[420301669,1775940641396,-1557.0,0.00017808,2]
[420301670,1775940641405,-3381.06237294,0.0001784,2]
[420301671,1775940641418,-1479.7185816,0.000179,2]
[420301672,1775940641434,-438.577338,0.00017993,2]
[420301673,1775940641444,-211.51865781,0.00018,2]
[420301674,1775940641453,-8535.0,0.00018,2]
[420301675,1775940641467,-600.0,0.00018003,2]
[420301676,1775940641479,-168.0,0.00018008,2]
[420301677,1775940641489,-168.0,0.00018034,2]
[420301678,1775940641501,-152.0,0.0001805,2]
[420301679,1775940641511,-1557.0,0.00018082,2]
[420301680,1775940641525,-6290.73100824,0.00018094,2]
[420301681,1775940641536,-316.0,0.00018119,2]
[420301682,1775940641551,-184.0,0.00018124,2]
[420301683,1775940641560,-168.0,0.00018185,2]
[420301684,1775940641578,-764.38,0.00018204,3]
[420301685,1775940641589,-382.18,0.00018204,3]
[420301686,1775940641599,-402.0,0.00018267,2]
[420301687,1775940641616,-340.93044583,0.00018275,2]
[420301688,1775940641630,-1557.0,0.00018356,2]
[420301689,1775940641639,-509.0,0.00018483,2]
[420301690,1775940641648,-233.310459,0.00018493,2]
[420301692,1775940641663,-6224.2077349,0.000186,2]
[420301693,1775940641682,-4043.75533198,0.000186,2]
[420301694,1775940641691,-4043.75533195,0.000186,2]
[420301695,1775940641703,-4043.75533195,0.000186,2]
[420301696,1775940641717,-4043.75533195,0.000186,2]
[420301697,1775940641727,-169.62,0.00018612,7]
[420301698,1775940641739,-1557.0,0.0001863,2]
[420301699,1775940641759,-500.0,0.00018792,2]
[420301700,1775940641768,-151.0,0.000188,2]
[420301701,1775940641778,-168.0,0.00018845,2]
[420301702,1775940641787,-168.0,0.0001887,2]
[420301703,1775940641803,-340.93044583,0.00018898,2]
[420301704,1775940641812,-1557.0,0.00018904,2]
[420301705,1775940641821,-501.43065135,0.00018917,2]
[420301706,1775940641831,-500.0,0.00018917,2]
[420301707,1775940641843,-169.62,0.00018923,7]
[420301708,1775940641854,-500.0,0.00018973,2]
[420301709,1775940641863,-500.0,0.00018997,2]
[420301710,1775940641872,-500.0,0.00018997,2]
[420301711,1775940641882,-500.0,0.00018997,2]
[420301712,1775940641893,-365706.5255302,0.00018998,2]
[420301713,1775940641902,-864.2,0.00018998,2]
[420301714,1775940641912,-864.2,0.00018998,2]
[420301715,1775940641922,-864.2,0.00018998,2]